[Event "January 2 Early 2024"]
[Site "https://www.chess.com"]
[Date "2024.01.02"]
[Round "4"]
[White "Deveci, Huseyin Said"]
[Black "Tanriverdi, Enes"]
[Result "0-1"]
[Board "98"]
[TimeControl "180+1"]
[WhiteFideId "26322455"]
[BlackFideId "34543279"]
[WhiteElo "2299"]
[BlackElo "2655"]
[WhiteTeam "TUR"]
[BlackTeam "TUR"]
[WhiteClock "0:00:04"]
[BlackClock "0:00:07"]

1. e4 {[%clk 0:03:00]}  c5 {[%clk 0:02:59]} 2. Nf3 {[%clk 0:03:01]}  d6 {[%clk 0:02:58]} 3. d4 {[%clk 0:03:01]}  cxd4 {[%clk 0:02:57]} 4. Nxd4 {[%clk 0:03:02]}  Nf6 {[%clk 0:02:57]} 5. Nc3 {[%clk 0:03:03]}  a6 {[%clk 0:02:57]} 6. Rg1 {[%clk 0:03:03]}  e5 {[%clk 0:02:50]} 7. Nb3 {[%clk 0:03:03]}  h5 {[%clk 0:02:43]} 8. h3 {[%clk 0:03:03]}  h4 {[%clk 0:02:43]} 9. Bg5 {[%clk 0:02:46]}  Be7 {[%clk 0:02:42]} 10. Qf3 {[%clk 0:02:41]}  Be6 {[%clk 0:02:42]} 11. O-O-O {[%clk 0:02:39]}  Nbd7 {[%clk 0:02:42]} 12. Kb1 {[%clk 0:02:34]}  Rc8 {[%clk 0:02:41]} 13. Nd5 {[%clk 0:02:27]}  Bxd5 {[%clk 0:02:36]} 14. exd5 {[%clk 0:02:27]}  Qc7 {[%clk 0:02:20]} 15. Bd3 {[%clk 0:02:24]}  Nxd5 {[%clk 0:02:14]} 16. Qxd5 {[%clk 0:01:00]}  Bxg5 {[%clk 0:02:11]} 17. Bf5 {[%clk 0:01:00]}  Be7 {[%clk 0:02:02]} 18. f4 {[%clk 0:00:59]}  Rh5 {[%clk 0:01:46]} 19. Bxd7+ {[%clk 0:00:17]}  Qxd7 {[%clk 0:01:40]} 20. Rge1 {[%clk 0:00:18]}  Qc6 {[%clk 0:01:34]} 21. fxe5 {[%clk 0:00:18]}  Qxd5 {[%clk 0:01:29]} 22. Rxd5 {[%clk 0:00:18]}  Rxe5 {[%clk 0:01:29]} 23. Rexe5 {[%clk 0:00:18]}  dxe5 {[%clk 0:01:30]} 24. Rxe5 {[%clk 0:00:19]}  Kf8 {[%clk 0:01:27]} 25. c3 {[%clk 0:00:19]}  Rc6 {[%clk 0:01:26]} 26. Nd4 {[%clk 0:00:17]}  Rg6 {[%clk 0:01:20]} 27. Re2 {[%clk 0:00:17]}  Bc5 {[%clk 0:01:17]} 28. Nf5 {[%clk 0:00:16]}  Rf6 {[%clk 0:00:34]} 29. Nxh4 {[%clk 0:00:16]}  Rf1+ {[%clk 0:00:32]} 30. Kc2 {[%clk 0:00:16]}  b5 {[%clk 0:00:30]} 31. Nf3 {[%clk 0:00:16]}  a5 {[%clk 0:00:31]} 32. Ne5 {[%clk 0:00:15]}  Kg8 {[%clk 0:00:29]} 33. Nf3 {[%clk 0:00:12]}  a4 {[%clk 0:00:29]} 34. a3 {[%clk 0:00:11]}  f6 {[%clk 0:00:27]} 35. Nd2 {[%clk 0:00:08]}  Rg1 {[%clk 0:00:21]} 36. Ne4 {[%clk 0:00:08]}  Bf8 {[%clk 0:00:20]} 37. Ng3 {[%clk 0:00:08]}  g6 {[%clk 0:00:18]} 38. Ne4 {[%clk 0:00:08]}  Kf7 {[%clk 0:00:18]} 39. Nd2 {[%clk 0:00:07]}  f5 {[%clk 0:00:18]} 40. Nf3 {[%clk 0:00:07]}  Rf1 {[%clk 0:00:18]} 41. Ne5+ {[%clk 0:00:07]}  Kg7 {[%clk 0:00:18]} 42. Nf3 {[%clk 0:00:07]}  Bc5 {[%clk 0:00:18]} 43. Kd3 {[%clk 0:00:07]}  Rb1 {[%clk 0:00:17]} 44. Kc2 {[%clk 0:00:05]}  Ra1 {[%clk 0:00:17]} 45. Re5 {[%clk 0:00:04]}  Bf8 {[%clk 0:00:10]} 46. Rxb5 {[%clk 0:00:05]}  Rf1 {[%clk 0:00:11]} 47. Rd5 {[%clk 0:00:04]}  Kf6 {[%clk 0:00:09]} 48. Rd2 {[%clk 0:00:05]}  g5 {[%clk 0:00:10]} 49. Nd4 {[%clk 0:00:05]}  g4 {[%clk 0:00:08]} 50. hxg4 {[%clk 0:00:05]}  fxg4 {[%clk 0:00:09]} 51. Re2 {[%clk 0:00:05]}  Bh6 {[%clk 0:00:09]} 52. Kd3 {[%clk 0:00:05]}  Rb1 {[%clk 0:00:09]} 53. Kc4 {[%clk 0:00:06]}  Bc1 {[%clk 0:00:09]} 54. Kb4 {[%clk 0:00:05]}  Bxb2 {[%clk 0:00:09]} 55. Kxa4 {[%clk 0:00:05]}  Bxc3 {[%clk 0:00:10]} 56. Nb5 {[%clk 0:00:05]}  Bd4 {[%clk 0:00:10]} 57. Ka5 {[%clk 0:00:05]}  Be5 {[%clk 0:00:10]} 58. a4 {[%clk 0:00:05]}  Kf5 {[%clk 0:00:10]} 59. Ka6 {[%clk 0:00:05]}  g3 {[%clk 0:00:10]} 60. a5 {[%clk 0:00:05]}  Bf4 {[%clk 0:00:10]} 61. Nd4+ {[%clk 0:00:05]}  Kg4 {[%clk 0:00:09]} 62. Nf3 {[%clk 0:00:04]}  Ra1 {[%clk 0:00:08]} 63. Nd4 {[%clk 0:00:04]}  Bc7 {[%clk 0:00:07]} 64. Nb3 {[%clk 0:00:03]}  Ra3 {[%clk 0:00:07]} 65. Re3 {[%clk 0:00:03]}  Kf4 {[%clk 0:00:07]} 66. Rd3 {[%clk 0:00:03]}  Ra2 {[%clk 0:00:06]} 67. Kb7 {[%clk 0:00:02]}  Bxa5 {[%clk 0:00:06]} 68. Rf3+ {[%clk 0:00:02]}  Kg4 {[%clk 0:00:06]} 69. Nxa5 {[%clk 0:00:02]}  Rxa5 {[%clk 0:00:06]} 70. Rd3 {[%clk 0:00:01]}  Ra2 {[%clk 0:00:06]} 71. Rd4+ {[%clk 0:00:02]}  Kg5 {[%clk 0:00:07]} 72. Rd3 {[%clk 0:00:02]}  Rxg2 {[%clk 0:00:06]} 73. Kc6 {[%clk 0:00:03]}  Kg4 {[%clk 0:00:06]} 74. Kd5 {[%clk 0:00:03]}  Rf2 {[%clk 0:00:07]} 75. Ke4 {[%clk 0:00:03]}  g2 {[%clk 0:00:06]} 76. Rd1 {[%clk 0:00:03]}  Rf1 {[%clk 0:00:07]} 77. Rd2 {[%clk 0:00:04]}  g1=Q {[%clk 0:00:07]} 78. Rh2 {[%clk 0:00:04]}  Qxh2 {[%clk 0:00:07]} 0-1

[Event "January 2 Early 2024"]
[Site "https://www.chess.com"]
[Date "2024.01.02"]
[Round "4"]
[White "Fernandez Hernandez, Gerardo"]
[Black "Feuerstack, Aljoscha"]
[Result "0-1"]
[Board "99"]
[TimeControl "180+1"]
[WhiteFideId "2207400"]
[BlackFideId "4681932"]
[WhiteElo "2267"]
[BlackElo "2654"]
[WhiteTeam "ESP"]
[BlackTeam "GER"]
[WhiteClock "0:00:10"]
[BlackClock "0:00:45"]

1. e4 {[%clk 0:03:00]}  c6 {[%clk 0:02:59]} 2. d4 {[%clk 0:03:00]}  d5 {[%clk 0:02:59]} 3. exd5 {[%clk 0:03:01]}  cxd5 {[%clk 0:03:00]} 4. c4 {[%clk 0:03:01]}  Nf6 {[%clk 0:02:55]} 5. Nc3 {[%clk 0:03:01]}  g6 {[%clk 0:02:54]} 6. Qb3 {[%clk 0:03:00]}  Bg7 {[%clk 0:02:53]} 7. cxd5 {[%clk 0:03:00]}  O-O {[%clk 0:02:53]} 8. Be2 {[%clk 0:02:58]}  Na6 {[%clk 0:02:48]} 9. Bf3 {[%clk 0:02:56]}  Nc7 {[%clk 0:02:47]} 10. Nge2 {[%clk 0:02:52]}  Qd7 {[%clk 0:02:22]} 11. Bf4 {[%clk 0:02:48]}  Rd8 {[%clk 0:02:19]} 12. d6 {[%clk 0:02:44]}  exd6 {[%clk 0:02:06]} 13. O-O {[%clk 0:02:44]}  Ne6 {[%clk 0:02:02]} 14. Bg3 {[%clk 0:02:16]}  Ng5 {[%clk 0:02:00]} 15. Bd5 {[%clk 0:02:03]}  Nxd5 {[%clk 0:01:56]} 16. Nxd5 {[%clk 0:01:56]}  b6 {[%clk 0:01:28]} 17. Rac1 {[%clk 0:01:44]}  Bb7 {[%clk 0:01:27]} 18. Rfe1 {[%clk 0:01:37]}  Ne6 {[%clk 0:01:23]} 19. Bh4 {[%clk 0:01:24]}  Re8 {[%clk 0:01:16]} 20. Nf6+ {[%clk 0:01:21]}  Bxf6 {[%clk 0:01:16]} 21. Bxf6 {[%clk 0:01:22]}  Ng7 {[%clk 0:01:07]} 22. Nf4 {[%clk 0:01:13]}  Qf5 {[%clk 0:00:50]} 23. Bxg7 {[%clk 0:01:00]}  Qxf4 {[%clk 0:00:50]} 24. g3 {[%clk 0:00:43]}  Rxe1+ {[%clk 0:00:45]} 25. Rxe1 {[%clk 0:00:42]}  Qd2 {[%clk 0:00:46]} 26. Qe3 {[%clk 0:00:10]}  Qxe3 {[%clk 0:00:45]} 27. Rxe3 {[%clk 0:00:10]}  Kxg7 {[%clk 0:00:46]} 28. Re7 {[%clk 0:00:11]}  Bd5 {[%clk 0:00:46]} 29. a3 {[%clk 0:00:10]}  Rc8 {[%clk 0:00:46]} 30. Rd7 {[%clk 0:00:10]}  Rc1# {[%clk 0:00:45]} 0-1

[Event "January 2 Early 2024"]
[Site "https://www.chess.com"]
[Date "2024.01.02"]
[Round "4"]
[White "Daurimbetov, Azamat"]
[Black "Volkov, Maksim"]
[Result "0-1"]
[Board "101"]
[TimeControl "180+1"]
[WhiteFideId "14201950"]
[BlackFideId "54123070"]
[WhiteElo "2249"]
[BlackElo "2647"]
[WhiteTeam "UZB"]
[BlackTeam "RUS"]
[WhiteClock "0:00:00"]
[BlackClock "0:01:19"]

1. e4 {[%clk 0:03:00]}  c5 {[%clk 0:02:58]} 2. Nf3 {[%clk 0:03:00]}  d6 {[%clk 0:02:59]} 3. d4 {[%clk 0:03:00]}  cxd4 {[%clk 0:02:59]} 4. Qxd4 {[%clk 0:03:01]}  Nc6 {[%clk 0:02:59]} 5. Bb5 {[%clk 0:03:02]}  Bd7 {[%clk 0:02:59]} 6. Bxc6 {[%clk 0:03:02]}  Bxc6 {[%clk 0:02:59]} 7. Nc3 {[%clk 0:03:01]}  Nf6 {[%clk 0:02:52]} 8. Bg5 {[%clk 0:03:00]}  e6 {[%clk 0:02:52]} 9. O-O-O {[%clk 0:03:00]}  Be7 {[%clk 0:02:51]} 10. Kb1 {[%clk 0:02:58]}  Qa5 {[%clk 0:02:47]} 11. h4 {[%clk 0:02:53]}  O-O {[%clk 0:02:46]} 12. Qd3 {[%clk 0:02:51]}  h6 {[%clk 0:02:41]} 13. Bd2 {[%clk 0:02:24]}  Qa6 {[%clk 0:02:40]} 14. Qxa6 {[%clk 0:02:07]}  bxa6 {[%clk 0:02:41]} 15. Rhe1 {[%clk 0:02:06]}  Ng4 {[%clk 0:02:39]} 16. Nd4 {[%clk 0:02:05]}  Bb7 {[%clk 0:02:36]} 17. f3 {[%clk 0:02:03]}  Ne5 {[%clk 0:02:30]} 18. Nb3 {[%clk 0:02:03]}  Bxh4 {[%clk 0:02:28]} 19. Rh1 {[%clk 0:02:00]}  Be7 {[%clk 0:02:28]} 20. Bf4 {[%clk 0:01:58]}  Nc4 {[%clk 0:02:25]} 21. g4 {[%clk 0:01:28]}  Rfc8 {[%clk 0:02:18]} 22. Rh5 {[%clk 0:01:27]}  Bf6 {[%clk 0:02:15]} 23. Bxd6 {[%clk 0:01:09]}  Bxc3 {[%clk 0:01:56]} 24. bxc3 {[%clk 0:01:08]}  Rd8 {[%clk 0:01:56]} 25. e5 {[%clk 0:00:28]}  Bxf3 {[%clk 0:01:56]} 26. Rd4 {[%clk 0:00:29]}  Rac8 {[%clk 0:01:50]} 27. Nc5 {[%clk 0:00:13]}  g6 {[%clk 0:01:25]} 28. Rxh6 {[%clk 0:00:07]}  Nxd6 {[%clk 0:01:24]} 29. Rh3 {[%clk 0:00:00]}  Bd5 {[%clk 0:01:19]} 0-1

[Event "January 2 Early 2024"]
[Site "https://www.chess.com"]
[Date "2024.01.02"]
[Round "4"]
[White "Kabanov, Nikolai"]
[Black "Harshavardhan G B"]
[Result "0-1"]
[Board "106"]
[TimeControl "180+1"]
[WhiteFideId "4127820"]
[BlackFideId "25059009"]
[WhiteElo "2518"]
[BlackElo "2704"]
[WhiteTeam "RUS"]
[BlackTeam "IND"]
[WhiteClock "0:00:47"]
[BlackClock "0:02:21"]

1. e4 {[%clk 0:03:00]}  e5 {[%clk 0:02:53]} 2. Nf3 {[%clk 0:02:59]}  Nc6 {[%clk 0:02:53]} 3. Bc4 {[%clk 0:02:58]}  Nf6 {[%clk 0:02:52]} 4. d4 {[%clk 0:02:49]}  exd4 {[%clk 0:02:51]} 5. e5 {[%clk 0:02:49]}  d5 {[%clk 0:02:48]} 6. Bb5 {[%clk 0:02:48]}  Ne4 {[%clk 0:02:48]} 7. Nxd4 {[%clk 0:02:48]}  Bd7 {[%clk 0:02:48]} 8. Bxc6 {[%clk 0:02:47]}  bxc6 {[%clk 0:02:49]} 9. O-O {[%clk 0:02:46]}  Be7 {[%clk 0:02:49]} 10. f3 {[%clk 0:02:43]}  Nc5 {[%clk 0:02:49]} 11. f4 {[%clk 0:02:42]}  f5 {[%clk 0:02:49]} 12. c4 {[%clk 0:02:15]}  O-O {[%clk 0:02:42]} 13. Nc3 {[%clk 0:02:12]}  Ne4 {[%clk 0:02:26]} 14. Nxe4 {[%clk 0:02:02]}  dxe4 {[%clk 0:02:26]} 15. Be3 {[%clk 0:01:56]}  c5 {[%clk 0:02:26]} 16. Nb3 {[%clk 0:01:54]}  Be6 {[%clk 0:02:23]} 17. Qc2 {[%clk 0:01:25]}  Qd7 {[%clk 0:02:21]} 18. Bxc5 {[%clk 0:01:09]}  Bxc5+ {[%clk 0:02:20]} 19. Nxc5 {[%clk 0:01:08]}  Qd4+ {[%clk 0:02:21]} 20. Qf2 {[%clk 0:00:47]}  e3 {[%clk 0:02:21]} 0-1

[Event "January 2 Early 2024"]
[Site "https://www.chess.com"]
[Date "2024.01.02"]
[Round "4"]
[White "Skliarov, Viktor"]
[Black "Devaev, Alexander"]
[Result "1/2-1/2"]
[Board "108"]
[TimeControl "180+1"]
[WhiteFideId "14106736"]
[BlackFideId "4169395"]
[WhiteElo "2661"]
[BlackElo "2508"]
[WhiteTeam "UKR"]
[BlackTeam "RUS"]
[WhiteClock "0:00:09"]
[BlackClock "0:00:06"]

1. e4 {[%clk 0:02:52]}  c6 {[%clk 0:02:59]} 2. d4 {[%clk 0:02:52]}  d5 {[%clk 0:03:00]} 3. e5 {[%clk 0:02:52]}  Bf5 {[%clk 0:03:00]} 4. Nf3 {[%clk 0:02:52]}  e6 {[%clk 0:03:00]} 5. Be2 {[%clk 0:02:51]}  Nd7 {[%clk 0:03:01]} 6. O-O {[%clk 0:02:51]}  h6 {[%clk 0:03:02]} 7. a4 {[%clk 0:02:48]}  a5 {[%clk 0:02:58]} 8. Nbd2 {[%clk 0:02:46]}  Ne7 {[%clk 0:02:57]} 9. Nb3 {[%clk 0:02:45]}  Bg6 {[%clk 0:02:37]} 10. Bd2 {[%clk 0:02:39]}  b6 {[%clk 0:02:28]} 11. c4 {[%clk 0:02:32]}  dxc4 {[%clk 0:02:26]} 12. Bxc4 {[%clk 0:02:32]}  Nd5 {[%clk 0:02:27]} 13. Rc1 {[%clk 0:02:28]}  Bb4 {[%clk 0:02:17]} 14. Bxd5 {[%clk 0:02:12]}  cxd5 {[%clk 0:02:16]} 15. Bxb4 {[%clk 0:01:41]}  axb4 {[%clk 0:02:16]} 16. Nbd2 {[%clk 0:01:42]}  O-O {[%clk 0:02:01]} 17. Qb3 {[%clk 0:01:38]}  Qe7 {[%clk 0:02:02]} 18. Rc7 {[%clk 0:01:35]}  Rfc8 {[%clk 0:01:49]} 19. Rfc1 {[%clk 0:01:33]}  Rxc7 {[%clk 0:01:50]} 20. Rxc7 {[%clk 0:01:34]}  Qd8 {[%clk 0:01:50]} 21. Rc1 {[%clk 0:01:18]}  Rc8 {[%clk 0:01:42]} 22. Rxc8 {[%clk 0:00:50]}  Qxc8 {[%clk 0:01:42]} 23. Qxb4 {[%clk 0:00:51]}  Qc1+ {[%clk 0:00:51]} 24. Nf1 {[%clk 0:00:50]}  Bd3 {[%clk 0:00:52]} 25. Ne1 {[%clk 0:00:50]}  Bc4 {[%clk 0:00:47]} 26. Ne3 {[%clk 0:00:16]}  Ba6 {[%clk 0:00:38]} 27. b3 {[%clk 0:00:13]}  Nb8 {[%clk 0:00:32]} 28. Nc2 {[%clk 0:00:08]}  Bd3 {[%clk 0:00:30]} 29. Qc3 {[%clk 0:00:03]}  Bxc2 {[%clk 0:00:29]} 30. h4 {[%clk 0:00:03]}  Na6 {[%clk 0:00:15]} 31. Kh2 {[%clk 0:00:03]}  Qf4+ {[%clk 0:00:13]} 32. Kg1 {[%clk 0:00:02]}  Be4 {[%clk 0:00:10]} 33. Qc8+ {[%clk 0:00:02]}  Kh7 {[%clk 0:00:11]} 34. Qxa6 {[%clk 0:00:03]}  Qd2 {[%clk 0:00:10]} 35. Qf1 {[%clk 0:00:03]}  Qb2 {[%clk 0:00:10]} 36. f3 {[%clk 0:00:03]}  Bg6 {[%clk 0:00:09]} 37. Qf2 {[%clk 0:00:04]}  Qxb3 {[%clk 0:00:10]} 38. Qd2 {[%clk 0:00:04]}  Qxa4 {[%clk 0:00:10]} 39. g4 {[%clk 0:00:04]}  h5 {[%clk 0:00:10]} 40. gxh5 {[%clk 0:00:04]}  Bxh5 {[%clk 0:00:10]} 41. Kf2 {[%clk 0:00:05]}  Qc4 {[%clk 0:00:09]} 42. Ng2 {[%clk 0:00:06]}  Qb3 {[%clk 0:00:08]} 43. Ne3 {[%clk 0:00:06]}  b5 {[%clk 0:00:08]} 44. Qc2+ {[%clk 0:00:06]}  Qxc2+ {[%clk 0:00:06]} 45. Nxc2 {[%clk 0:00:07]}  Bg6 {[%clk 0:00:07]} 46. Nb4 {[%clk 0:00:07]}  f6 {[%clk 0:00:05]} 47. f4 {[%clk 0:00:06]}  fxe5 {[%clk 0:00:05]} 48. fxe5 {[%clk 0:00:07]}  Be8 {[%clk 0:00:05]} 49. Kg3 {[%clk 0:00:07]}  Kg6 {[%clk 0:00:06]} 50. Kg4 {[%clk 0:00:07]}  Bd7 {[%clk 0:00:06]} 51. Nd3 {[%clk 0:00:07]}  Kf7 {[%clk 0:00:06]} 52. Kg5 {[%clk 0:00:06]}  Bc6 {[%clk 0:00:04]} 53. Nb4 {[%clk 0:00:06]}  Be8 {[%clk 0:00:05]} 54. h5 {[%clk 0:00:06]}  Ke7 {[%clk 0:00:05]} 55. h6 {[%clk 0:00:06]}  gxh6+ {[%clk 0:00:06]} 56. Kxh6 {[%clk 0:00:07]}  Bd7 {[%clk 0:00:06]} 57. Kg7 {[%clk 0:00:07]}  Be8 {[%clk 0:00:06]} 58. Nd3 {[%clk 0:00:07]}  Bh5 {[%clk 0:00:06]} 59. Nb4 {[%clk 0:00:08]}  Bg4 {[%clk 0:00:07]} 60. Kg6 {[%clk 0:00:06]}  Bh3 {[%clk 0:00:06]} 61. Kg7 {[%clk 0:00:06]}  Bf5 {[%clk 0:00:07]} 62. Nc6+ {[%clk 0:00:06]}  Kd7 {[%clk 0:00:07]} 63. Nb4 {[%clk 0:00:06]}  Kc7 {[%clk 0:00:07]} 64. Kf6 {[%clk 0:00:07]}  Bh3 {[%clk 0:00:04]} 65. Ke7 {[%clk 0:00:06]}  Kb6 {[%clk 0:00:04]} 66. Kd6 {[%clk 0:00:06]}  Ka5 {[%clk 0:00:05]} 67. Kc5 {[%clk 0:00:07]}  Ka4 {[%clk 0:00:05]} 68. Nc6 {[%clk 0:00:07]}  Bf5 {[%clk 0:00:05]} 69. Nb4 {[%clk 0:00:08]}  Bg6 {[%clk 0:00:04]} 70. Nc6 {[%clk 0:00:08]}  Be8 {[%clk 0:00:04]} 71. Nb4 {[%clk 0:00:09]}  Ka5 {[%clk 0:00:04]} 72. Nd3 {[%clk 0:00:09]}  Bg6 {[%clk 0:00:03]} 73. Nb4 {[%clk 0:00:09]}  Bf5 {[%clk 0:00:03]} 74. Nc6+ {[%clk 0:00:09]}  Ka4 {[%clk 0:00:04]} 75. Nb4 {[%clk 0:00:10]}  Bg4 {[%clk 0:00:04]} 76. Nc6 {[%clk 0:00:10]}  Bh3 {[%clk 0:00:03]} 77. Nb4 {[%clk 0:00:11]}  Bf5 {[%clk 0:00:04]} 78. Nc6 {[%clk 0:00:11]}  Bg4 {[%clk 0:00:04]} 79. Nb4 {[%clk 0:00:11]}  Bh5 {[%clk 0:00:05]} 80. Nc6 {[%clk 0:00:12]}  Bf7 {[%clk 0:00:05]} 81. Nb4 {[%clk 0:00:12]}  Be8 {[%clk 0:00:05]} 82. Nd3 {[%clk 0:00:12]}  Ka3 {[%clk 0:00:05]} 83. Nb4 {[%clk 0:00:12]}  Ka4 {[%clk 0:00:04]} 84. Nd3 {[%clk 0:00:12]}  Kb3 {[%clk 0:00:04]} 85. Nb4 {[%clk 0:00:12]}  Kc3 {[%clk 0:00:05]} 86. Na6 {[%clk 0:00:13]}  Kd3 {[%clk 0:00:04]} 87. Nb4+ {[%clk 0:00:13]}  Ke4 {[%clk 0:00:04]} 88. Na6 {[%clk 0:00:13]}  Kd3 {[%clk 0:00:04]} 89. Nb4+ {[%clk 0:00:13]}  Kc3 {[%clk 0:00:05]} 90. Na6 {[%clk 0:00:13]}  Kb3 {[%clk 0:00:06]} 91. Nb4 {[%clk 0:00:09]}  Ka4 {[%clk 0:00:06]} 1/2-1/2

[Event "January 2 Early 2024"]
[Site "https://www.chess.com"]
[Date "2024.01.02"]
[Round "4"]
[White "Lizak, Peter"]
[Black "Fiedorek, Michal"]
[Result "0-1"]
[Board "110"]
[TimeControl "180+1"]
[WhiteFideId "731595"]
[BlackFideId "1199528"]
[WhiteElo "2646"]
[BlackElo "2483"]
[WhiteTeam "HUN"]
[BlackTeam "POL"]
[WhiteClock "0:01:01"]
[BlackClock "0:01:16"]

1. d4 {[%clk 0:03:00]}  Nf6 {[%clk 0:02:57]} 2. Nc3 {[%clk 0:03:00]}  d5 {[%clk 0:02:57]} 3. Bf4 {[%clk 0:03:01]}  g6 {[%clk 0:02:54]} 4. e3 {[%clk 0:03:01]}  Bg7 {[%clk 0:02:54]} 5. h4 {[%clk 0:03:01]}  h5 {[%clk 0:02:46]} 6. Nf3 {[%clk 0:03:00]}  Bg4 {[%clk 0:02:47]} 7. Qd2 {[%clk 0:02:59]}  Bxf3 {[%clk 0:02:45]} 8. gxf3 {[%clk 0:02:59]}  O-O {[%clk 0:02:46]} 9. e4 {[%clk 0:03:00]}  c6 {[%clk 0:02:40]} 10. e5 {[%clk 0:03:00]}  Nfd7 {[%clk 0:02:39]} 11. Rg1 {[%clk 0:02:52]}  e6 {[%clk 0:02:35]} 12. Bg5 {[%clk 0:02:51]}  Qb6 {[%clk 0:02:34]} 13. O-O-O {[%clk 0:02:49]}  c5 {[%clk 0:02:34]} 14. f4 {[%clk 0:02:45]}  cxd4 {[%clk 0:02:33]} 15. Ne2 {[%clk 0:02:44]}  Nc6 {[%clk 0:02:33]} 16. Kb1 {[%clk 0:02:40]}  Nc5 {[%clk 0:02:33]} 17. Nxd4 {[%clk 0:02:22]}  Ne4 {[%clk 0:02:23]} 18. Qe3 {[%clk 0:02:22]}  Nxd4 {[%clk 0:02:17]} 19. Rxd4 {[%clk 0:02:21]}  Rfc8 {[%clk 0:02:14]} 20. f3 {[%clk 0:01:45]}  Nc3+ {[%clk 0:01:40]} 21. Ka1 {[%clk 0:01:44]}  Nd1 {[%clk 0:01:24]} 22. Qc1 {[%clk 0:01:06]}  Qxd4 {[%clk 0:01:18]} 23. Bd3 {[%clk 0:01:01]}  Nxb2 {[%clk 0:01:16]} 0-1

[Event "January 2 Early 2024"]
[Site "https://www.chess.com"]
[Date "2024.01.02"]
[Round "4"]
[White "Mohammadi, Melika"]
[Black "Sipila, Vilka"]
[Result "0-1"]
[Board "113"]
[TimeControl "180+1"]
[WhiteFideId "42529271"]
[BlackFideId "505455"]
[WhiteElo "2453"]
[BlackElo "2625"]
[WhiteTeam "IRI"]
[BlackTeam "FIN"]
[WhiteClock "0:00:01"]
[BlackClock "0:00:50"]

1. e4 {[%clk 0:03:00]}  c5 {[%clk 0:02:59]} 2. Nf3 {[%clk 0:03:01]}  e6 {[%clk 0:02:59]} 3. d4 {[%clk 0:03:01]}  cxd4 {[%clk 0:03:00]} 4. Nxd4 {[%clk 0:03:02]}  Nf6 {[%clk 0:03:01]} 5. Nc3 {[%clk 0:03:02]}  Nc6 {[%clk 0:03:01]} 6. Ndb5 {[%clk 0:03:02]}  Bc5 {[%clk 0:03:00]} 7. Bf4 {[%clk 0:03:02]}  O-O {[%clk 0:03:00]} 8. Bc7 {[%clk 0:03:03]}  Qe7 {[%clk 0:03:00]} 9. Bd6 {[%clk 0:03:04]}  Bxd6 {[%clk 0:03:01]} 10. Qxd6 {[%clk 0:03:05]}  Qd8 {[%clk 0:03:02]} 11. Nc7 {[%clk 0:03:05]}  Rb8 {[%clk 0:03:01]} 12. Be2 {[%clk 0:03:06]}  b5 {[%clk 0:02:59]} 13. e5 {[%clk 0:03:06]}  Ne8 {[%clk 0:02:42]} 14. Nxe8 {[%clk 0:03:05]}  Rxe8 {[%clk 0:02:42]} 15. O-O {[%clk 0:02:59]}  b4 {[%clk 0:02:41]} 16. Ne4 {[%clk 0:02:58]}  Bb7 {[%clk 0:02:34]} 17. Nc5 {[%clk 0:02:42]}  Ne7 {[%clk 0:02:34]} 18. Qxd7 {[%clk 0:02:14]}  Qxd7 {[%clk 0:02:33]} 19. Nxd7 {[%clk 0:02:14]}  Rbc8 {[%clk 0:02:34]} 20. a3 {[%clk 0:01:57]}  Red8 {[%clk 0:02:27]} 21. Rfd1 {[%clk 0:01:52]}  Nd5 {[%clk 0:02:26]} 22. Bb5 {[%clk 0:01:47]}  Bc6 {[%clk 0:02:25]} 23. Ba6 {[%clk 0:01:34]}  Bxd7 {[%clk 0:02:21]} 24. Bxc8 {[%clk 0:01:34]}  Rxc8 {[%clk 0:02:18]} 25. axb4 {[%clk 0:01:35]}  Rxc2 {[%clk 0:02:14]} 26. Rxa7 {[%clk 0:01:34]}  Be8 {[%clk 0:02:13]} 27. Ra8 {[%clk 0:01:24]}  Kf8 {[%clk 0:02:13]} 28. h3 {[%clk 0:01:17]}  Rxb2 {[%clk 0:02:13]} 29. Rc1 {[%clk 0:01:17]}  Ke7 {[%clk 0:01:58]} 30. Rcc8 {[%clk 0:01:02]}  Bd7 {[%clk 0:01:58]} 31. Rh8 {[%clk 0:00:59]}  Rxb4 {[%clk 0:01:43]} 32. Rxh7 {[%clk 0:00:58]}  g6 {[%clk 0:01:43]} 33. Rg8 {[%clk 0:00:58]}  Re4 {[%clk 0:01:42]} 34. Rxg6 {[%clk 0:00:50]}  Rxe5 {[%clk 0:01:42]} 35. Rg3 {[%clk 0:00:39]}  Re1+ {[%clk 0:01:40]} 36. Kh2 {[%clk 0:00:39]}  Re2 {[%clk 0:01:41]} 37. Rf3 {[%clk 0:00:37]}  Nf6 {[%clk 0:01:39]} 38. Rh6 {[%clk 0:00:37]}  Ne4 {[%clk 0:01:38]} 39. Rh8 {[%clk 0:00:31]}  Nxf2 {[%clk 0:01:35]} 40. Rg8 {[%clk 0:00:25]}  Bc6 {[%clk 0:01:33]} 41. Rf4 {[%clk 0:00:20]}  Nd3 {[%clk 0:01:30]} 42. Rf1 {[%clk 0:00:15]}  Ne1 {[%clk 0:01:29]} 43. Kg1 {[%clk 0:00:09]}  Nxg2 {[%clk 0:01:26]} 44. Rf2 {[%clk 0:00:08]}  Re1+ {[%clk 0:01:26]} 45. Rf1 {[%clk 0:00:09]}  Re3 {[%clk 0:01:12]} 46. Rxg2 {[%clk 0:00:07]}  Bxg2 {[%clk 0:01:13]} 47. Kxg2 {[%clk 0:00:08]}  f5 {[%clk 0:01:13]} 48. h4 {[%clk 0:00:06]}  Kf6 {[%clk 0:01:13]} 49. Rh1 {[%clk 0:00:05]}  Kg6 {[%clk 0:01:09]} 50. h5+ {[%clk 0:00:05]}  Kh6 {[%clk 0:01:10]} 51. Kf2 {[%clk 0:00:05]}  f4 {[%clk 0:01:06]} 52. Rh4 {[%clk 0:00:03]}  e5 {[%clk 0:01:06]} 53. Rh1 {[%clk 0:00:03]}  Rg3 {[%clk 0:01:04]} 54. Re1 {[%clk 0:00:02]}  Rg5 {[%clk 0:01:04]} 55. Kf3 {[%clk 0:00:03]}  Kxh5 {[%clk 0:01:00]} 56. Ke4 {[%clk 0:00:02]}  Kg6 {[%clk 0:01:00]} 57. Ra1 {[%clk 0:00:02]}  Rf5 {[%clk 0:00:53]} 58. Rg1+ {[%clk 0:00:01]}  Kf6 {[%clk 0:00:53]} 59. Ra1 {[%clk 0:00:01]}  f3 {[%clk 0:00:51]} 60. Rf1 {[%clk 0:00:02]}  f2 {[%clk 0:00:50]} 61. Ke3 {[%clk 0:00:02]}  Kg5 {[%clk 0:00:48]} 62. Rxf2 {[%clk 0:00:02]}  Rxf2 {[%clk 0:00:48]} 63. Kxf2 {[%clk 0:00:03]}  Kf4 {[%clk 0:00:48]} 64. Ke2 {[%clk 0:00:03]}  Ke4 {[%clk 0:00:49]} 65. Ke1 {[%clk 0:00:03]}  Ke3 {[%clk 0:00:49]} 66. Kf1 {[%clk 0:00:03]}  Kd2 {[%clk 0:00:49]} 67. Kf2 {[%clk 0:00:01]}  e4 {[%clk 0:00:50]} 0-1